[Event "Late-Titled-Tuesday-Blitz-February-27-2024"]
[Site "Chess.com"]
[Date "2024.02.27"]
[Round "10"]
[White "TomsKantans"]
[Black "AlexeiShirov"]
[Result "1-0"]
[WhiteElo "2697"]
[BlackElo "2836"]
[TimeControl "180+1"]
[EndTime "15:54:56 PST"]
[Termination "TomsKantans won by checkmate"]

1. e4 {[%clk 0:03:00.9]} 1... e5 {[%clk 0:02:59.9]} 2. Nf3 {[%clk 0:02:59.2]}
2... Nc6 {[%clk 0:02:59.1]} 3. d4 {[%clk 0:02:55.3]} 3... exd4 {[%clk
0:02:58.5]} 4. Nxd4 {[%clk 0:02:56.2]} 4... Qf6 {[%clk 0:02:58.6]} 5. Nf3 {[%clk
0:02:55.7]} 5... Bb4+ {[%clk 0:02:57.3]} 6. c3 {[%clk 0:02:55.8]} 6... Bc5
{[%clk 0:02:57.1]} 7. Be2 {[%clk 0:02:56.4]} 7... Nge7 {[%clk 0:02:55.1]} 8. O-O
{[%clk 0:02:56]} 8... d6 {[%clk 0:02:53.7]} 9. Bg5 {[%clk 0:02:50.6]} 9... Qg6
{[%clk 0:02:52.6]} 10. Bh4 {[%clk 0:02:51]} 10... Bg4 {[%clk 0:02:36.3]} 11.
Nbd2 {[%clk 0:02:44.6]} 11... O-O {[%clk 0:02:30.7]} 12. b4 {[%clk 0:02:18.5]}
12... f5 {[%clk 0:02:14.4]} 13. bxc5 {[%clk 0:02:03.1]} 13... fxe4 {[%clk
0:02:14]} 14. Nd4 {[%clk 0:01:35.5]} 14... Bxe2 {[%clk 0:02:12.1]} 15. Qxe2
{[%clk 0:01:33.5]} 15... Nxd4 {[%clk 0:02:07.4]} 16. cxd4 {[%clk 0:01:31.9]}
16... Nf5 {[%clk 0:02:06.7]} 17. Qxe4 {[%clk 0:01:10.9]} 17... Rae8 {[%clk
0:02:06.3]} 18. Qd5+ {[%clk 0:01:11.2]} 18... Kh8 {[%clk 0:02:02.4]} 19. Bg3
{[%clk 0:01:11.6]} 19... c6 {[%clk 0:02:02.4]} 20. Qb3 {[%clk 0:01:03.6]} 20...
Nxd4 {[%clk 0:02:01.4]} 21. Qxb7 {[%clk 0:01:02.3]} 21... dxc5 {[%clk 0:02:00]}
22. Qxa7 {[%clk 0:00:58.9]} 22... Qd3 {[%clk 0:01:57.3]} 23. Nb3 {[%clk
0:00:54.3]} 23... Ne2+ {[%clk 0:01:55]} 24. Kh1 {[%clk 0:00:53.7]} 24... c4
{[%clk 0:01:54.9]} 25. Rad1 {[%clk 0:00:31.8]} 25... Nxg3+ {[%clk 0:01:24.5]}
26. hxg3 {[%clk 0:00:32.7]} 26... Qg6 {[%clk 0:01:22.7]} 27. Nd4 {[%clk
0:00:29.2]} 27... Re5 {[%clk 0:01:22.3]} 28. Kg1 {[%clk 0:00:25.9]} 28... Rh5
{[%clk 0:01:20.5]} 29. Nf3 {[%clk 0:00:15.6]} 29... Qh6 {[%clk 0:01:20.5]} 30.
Nh4 {[%clk 0:00:15.4]} 30... g5 {[%clk 0:01:20.5]} 31. Qd4+ {[%clk 0:00:10]}
31... Rf6 {[%clk 0:01:19.6]} 32. Qd8+ {[%clk 0:00:06.5]} 32... Rf8 {[%clk
0:01:19.1]} 33. Qd4+ {[%clk 0:00:06.5]} 33... Rf6 {[%clk 0:01:19.3]} 34. Rfe1
{[%clk 0:00:03.3]} 34... gxh4 {[%clk 0:01:19.1]} 35. Re6 {[%clk 0:00:02.2]}
35... Rf5 {[%clk 0:01:16.9]} 36. Qd8+ {[%clk 0:00:02]} 36... Kg7 {[%clk
0:01:13.8]} 37. Rd7+ {[%clk 0:00:02]} 37... Kg6 {[%clk 0:01:12.8]} 38. Qg8+
{[%clk 0:00:02.3]} 38... Kh5 {[%clk 0:01:11.8]} 39. g4# {[%clk 0:00:02.9]} 1-0

[Event "Late-Titled-Tuesday-Blitz-February-27-2024"]
[Site "Chess.com"]
[Date "2024.02.27"]
[Round "10"]
[White "Hrant_ChessMood"]
[Black "Firouzja2003"]
[Result "0-1"]
[WhiteElo "3008"]
[BlackElo "3076"]
[TimeControl "180+1"]
[EndTime "15:55:06 PST"]
[Termination "Firouzja2003 won on time"]

1. Nf3 {[%clk 0:02:55.1]} 1... Nf6 {[%clk 0:02:54.9]} 2. c4 {[%clk 0:02:53.2]}
2... g6 {[%clk 0:02:55.8]} 3. g3 {[%clk 0:02:51.2]} 3... Bg7 {[%clk 0:02:56.7]}
4. Bg2 {[%clk 0:02:51.8]} 4... O-O {[%clk 0:02:57]} 5. O-O {[%clk 0:02:52.4]}
5... d6 {[%clk 0:02:57.9]} 6. Nc3 {[%clk 0:02:50.8]} 6... e5 {[%clk 0:02:58.4]}
7. d3 {[%clk 0:02:50.3]} 7... Nbd7 {[%clk 0:02:57.4]} 8. Rb1 {[%clk 0:02:48.1]}
8... Re8 {[%clk 0:02:57.6]} 9. Nd2 {[%clk 0:02:44.9]} 9... c6 {[%clk 0:02:56.9]}
10. b4 {[%clk 0:02:44.6]} 10... Nf8 {[%clk 0:02:56.9]} 11. b5 {[%clk 0:02:41.2]}
11... d5 {[%clk 0:02:56.8]} 12. bxc6 {[%clk 0:02:37.2]} 12... bxc6 {[%clk
0:02:57.7]} 13. Qa4 {[%clk 0:02:33]} 13... Bd7 {[%clk 0:02:57.4]} 14. Qa6 {[%clk
0:02:24.9]} 14... Ne6 {[%clk 0:02:42.4]} 15. Ba3 {[%clk 0:02:19.6]} 15... Ng5
{[%clk 0:02:09.6]} 16. cxd5 {[%clk 0:02:06.7]} 16... cxd5 {[%clk 0:02:10.5]} 17.
Nxd5 {[%clk 0:01:53.7]} 17... Nxd5 {[%clk 0:02:10.3]} 18. Bxd5 {[%clk
0:01:53.7]} 18... Bg4 {[%clk 0:02:11.2]} 19. Bf3 {[%clk 0:01:43.8]} 19... Nxf3+
{[%clk 0:02:09.8]} 20. Nxf3 {[%clk 0:01:44.7]} 20... Qd5 {[%clk 0:02:05.5]} 21.
Kg2 {[%clk 0:01:10]} 21... Qxa2 {[%clk 0:02:01.6]} 22. Rb2 {[%clk 0:00:57.6]}
22... Qd5 {[%clk 0:02:00.9]} 23. Qb5 {[%clk 0:00:45]} 23... Qe6 {[%clk
0:01:57.1]} 24. Rc1 {[%clk 0:00:39.6]} 24... e4 {[%clk 0:01:54.2]} 25. dxe4
{[%clk 0:00:40.2]} 25... Bxb2 {[%clk 0:01:49.3]} 26. Qxb2 {[%clk 0:00:28.1]}
26... Qxe4 {[%clk 0:01:46.1]} 27. h3 {[%clk 0:00:19.3]} 27... Bf5 {[%clk
0:01:35.8]} 28. Re1 {[%clk 0:00:11.8]} 28... Rab8 {[%clk 0:01:27.8]} 29. Qc3
{[%clk 0:00:12.1]} 29... Rec8 {[%clk 0:01:28.4]} 30. Qf6 {[%clk 0:00:11.9]}
30... Qe6 {[%clk 0:01:27.8]} 31. Qd4 {[%clk 0:00:09.8]} 31... Bxh3+ {[%clk
0:01:20.2]} 32. Kh2 {[%clk 0:00:09.9]} 32... f6 {[%clk 0:01:20.8]} 33. Qxa7
{[%clk 0:00:08.2]} 33... Ra8 {[%clk 0:01:19.4]} 34. Qe7 {[%clk 0:00:07.4]} 34...
Re8 {[%clk 0:01:14.4]} 35. Qxe6+ {[%clk 0:00:06.4]} 35... Bxe6 {[%clk
0:01:14.1]} 36. Bb2 {[%clk 0:00:07.3]} 36... Bg4 {[%clk 0:01:10.1]} 37. Nd4
{[%clk 0:00:06]} 37... Ra2 {[%clk 0:01:09.4]} 38. Bc3 {[%clk 0:00:04]} 38...
Bxe2 {[%clk 0:01:10]} 39. Nb5 {[%clk 0:00:01.9]} 39... Bxb5 {[%clk 0:01:09.5]}
0-1

[Event "Late-Titled-Tuesday-Blitz-February-27-2024"]
[Site "Chess.com"]
[Date "2024.02.27"]
[Round "10"]
[White "Ar4uha"]
[Black "Alphafischer2019"]
[Result "0-1"]
[WhiteElo "2602"]
[BlackElo "2708"]
[TimeControl "180+1"]
[EndTime "15:55:08 PST"]
[Termination "Alphafischer2019 won by resignation"]

1. e4 {[%clk 0:03:00.9]} 1... c5 {[%clk 0:02:59.1]} 2. Nf3 {[%clk 0:03:01]} 2...
Nc6 {[%clk 0:02:58.9]} 3. Bb5 {[%clk 0:03:00.5]} 3... Nf6 {[%clk 0:02:59.1]} 4.
Nc3 {[%clk 0:03:00.2]} 4... Qc7 {[%clk 0:02:57.8]} 5. O-O {[%clk 0:02:55.7]}
5... e5 {[%clk 0:02:53.1]} 6. a4 {[%clk 0:02:51.4]} 6... Nd4 {[%clk 0:02:52.6]}
7. Bc4 {[%clk 0:02:50.7]} 7... d6 {[%clk 0:02:51.6]} 8. h3 {[%clk 0:02:50]} 8...
Be7 {[%clk 0:02:48.7]} 9. d3 {[%clk 0:02:49.8]} 9... O-O {[%clk 0:02:43.7]} 10.
Bg5 {[%clk 0:02:49.4]} 10... Qd8 {[%clk 0:02:42.1]} 11. Bxf6 {[%clk 0:02:46.7]}
11... Bxf6 {[%clk 0:02:42.5]} 12. Nd5 {[%clk 0:02:47.4]} 12... g6 {[%clk
0:02:41.3]} 13. c3 {[%clk 0:02:47]} 13... Nc6 {[%clk 0:02:39.4]} 14. Nxf6+
{[%clk 0:02:39.1]} 14... Qxf6 {[%clk 0:02:38.9]} 15. Ne1 {[%clk 0:02:40]} 15...
Be6 {[%clk 0:02:38]} 16. Nc2 {[%clk 0:02:39.7]} 16... Rfd8 {[%clk 0:02:36.8]}
17. Ne3 {[%clk 0:02:39.9]} 17... Ne7 {[%clk 0:02:35.5]} 18. Qb3 {[%clk
0:02:35.3]} 18... Bxc4 {[%clk 0:02:32.4]} 19. Qxc4 {[%clk 0:02:35.1]} 19... h5
{[%clk 0:02:27.8]} 20. a5 {[%clk 0:02:19.8]} 20... Kg7 {[%clk 0:02:26.9]} 21.
Ra3 {[%clk 0:02:09.8]} 21... Rd7 {[%clk 0:02:25.7]} 22. Rb3 {[%clk 0:02:09.7]}
22... Rc8 {[%clk 0:02:25.4]} 23. Nd5 {[%clk 0:02:08.6]} 23... Nxd5 {[%clk
0:02:24.3]} 24. Qxd5 {[%clk 0:02:09.5]} 24... Rcc7 {[%clk 0:02:24.2]} 25. Ra3
{[%clk 0:02:00]} 25... Qe6 {[%clk 0:02:21.4]} 26. Qxe6 {[%clk 0:01:42.7]} 26...
fxe6 {[%clk 0:02:22.3]} 27. f4 {[%clk 0:01:42.6]} 27... exf4 {[%clk 0:02:21.7]}
28. Rxf4 {[%clk 0:01:43.5]} 28... g5 {[%clk 0:02:20]} 29. Rf2 {[%clk 0:01:42.8]}
29... Rf7 {[%clk 0:02:18.2]} 30. Rxf7+ {[%clk 0:01:43]} 30... Rxf7 {[%clk
0:02:19.1]} 31. Ra1 {[%clk 0:01:43.8]} 31... a6 {[%clk 0:02:10.3]} 32. Rf1
{[%clk 0:01:43.2]} 32... Rd7 {[%clk 0:02:01.8]} 33. Kf2 {[%clk 0:01:41.7]} 33...
d5 {[%clk 0:02:00.4]} 34. Ke3 {[%clk 0:01:40.1]} 34... d4+ {[%clk 0:01:59.3]}
35. Kd2 {[%clk 0:01:39.3]} 35... Kg6 {[%clk 0:01:54.3]} 36. e5 {[%clk
0:01:32.2]} 36... Rf7 {[%clk 0:01:47.4]} 37. Rxf7 {[%clk 0:01:28.3]} 37... Kxf7
{[%clk 0:01:46.3]} 38. cxd4 {[%clk 0:01:28.4]} 38... cxd4 {[%clk 0:01:45.3]} 39.
g4 {[%clk 0:01:23.3]} 39... hxg4 {[%clk 0:01:44.5]} 40. hxg4 {[%clk 0:01:24.2]}
40... Ke7 {[%clk 0:01:44.9]} 41. Kc2 {[%clk 0:01:24.6]} 41... Kd7 {[%clk
0:01:45.4]} 42. Kb3 {[%clk 0:01:24.7]} 42... Kc7 {[%clk 0:01:40]} 43. Kc4 {[%clk
0:01:24.7]} 43... Kc6 {[%clk 0:01:40.5]} 44. b3 {[%clk 0:01:00.6]} 44... b6
{[%clk 0:01:37.4]} 45. axb6 {[%clk 0:01:01.5]} 45... Kxb6 {[%clk 0:01:37.7]} 46.
Kxd4 {[%clk 0:01:02.2]} 46... Kb5 {[%clk 0:01:38.4]} 47. Kc3 {[%clk 0:01:02.6]}
47... Kc5 {[%clk 0:01:37.4]} 48. d4+ {[%clk 0:00:57]} 48... Kd5 {[%clk
0:01:37.5]} 49. Kd3 {[%clk 0:00:40.1]} 49... a5 {[%clk 0:01:36.9]} 50. Ke3
{[%clk 0:00:40.8]} 50... Kc6 {[%clk 0:01:37]} 51. Ke4 {[%clk 0:00:41.7]} 51...
a4 {[%clk 0:01:28.6]} 52. d5+ {[%clk 0:00:42.6]} 52... exd5+ {[%clk 0:01:28.7]}
53. Kd3 {[%clk 0:00:27.2]} 53... axb3 {[%clk 0:01:24.7]} 54. Kc3 {[%clk
0:00:27.2]} 54... d4+ {[%clk 0:01:25.4]} 55. Kxb3 {[%clk 0:00:27.2]} 55... Kd5
{[%clk 0:01:26]} 56. e6 {[%clk 0:00:23.1]} 56... Kxe6 {[%clk 0:01:25.9]} 57. Kc4
{[%clk 0:00:24]} 57... Ke5 {[%clk 0:01:25.9]} 58. Kd3 {[%clk 0:00:24.9]} 58...
Kd5 {[%clk 0:01:26.6]} 0-1

[Event "Late-Titled-Tuesday-Blitz-February-27-2024"]
[Site "Chess.com"]
[Date "2024.02.27"]
[Round "10"]
[White "Seochesspie"]
[Black "nindjaxx8"]
[Result "0-1"]
[WhiteElo "2868"]
[BlackElo "2710"]
[TimeControl "180+1"]
[EndTime "15:55:10 PST"]
[Termination "nindjaxx8 won by resignation"]

1. e4 {[%clk 0:03:00.9]} 1... e6 {[%clk 0:02:47.3]} 2. d4 {[%clk 0:03:00.6]}
2... d5 {[%clk 0:02:38.3]} 3. e5 {[%clk 0:03:00.7]} 3... c5 {[%clk 0:02:38.3]}
4. c3 {[%clk 0:03:01]} 4... Nc6 {[%clk 0:02:38.3]} 5. Nf3 {[%clk 0:03:01.4]}
5... Qb6 {[%clk 0:02:33.9]} 6. a3 {[%clk 0:03:00.8]} 6... Nh6 {[%clk 0:02:32.8]}
7. b4 {[%clk 0:02:59.7]} 7... cxd4 {[%clk 0:02:32.6]} 8. Bxh6 {[%clk 0:03:00.1]}
8... gxh6 {[%clk 0:02:30.3]} 9. cxd4 {[%clk 0:03:01]} 9... Bd7 {[%clk
0:02:27.6]} 10. Nc3 {[%clk 0:02:58.6]} 10... Nxb4 {[%clk 0:01:59.1]} 11. Na4
{[%clk 0:02:52.2]} 11... Bxa4 {[%clk 0:01:52.1]} 12. Qxa4+ {[%clk 0:02:51.8]}
12... Nc6 {[%clk 0:01:52]} 13. Bb5 {[%clk 0:02:32.9]} 13... a6 {[%clk
0:01:40.6]} 14. Bxc6+ {[%clk 0:02:32.9]} 14... Qxc6 {[%clk 0:01:21.4]} 15. Qb3
{[%clk 0:02:32.9]} 15... Bg7 {[%clk 0:01:14.5]} 16. O-O {[%clk 0:02:32.4]} 16...
O-O {[%clk 0:01:15]} 17. Rab1 {[%clk 0:02:27.7]} 17... b5 {[%clk 0:01:12.7]} 18.
Rfc1 {[%clk 0:02:27.1]} 18... Qd7 {[%clk 0:01:12.9]} 19. Rc3 {[%clk 0:02:25.9]}
19... Rfc8 {[%clk 0:01:12.5]} 20. Rbc1 {[%clk 0:02:26.4]} 20... Rxc3 {[%clk
0:01:12.2]} 21. Qxc3 {[%clk 0:02:26.2]} 21... Bf8 {[%clk 0:01:12.6]} 22. g3
{[%clk 0:02:17.4]} 22... a5 {[%clk 0:01:07.5]} 23. h4 {[%clk 0:02:14.3]} 23...
b4 {[%clk 0:01:02.1]} 24. axb4 {[%clk 0:02:15.2]} 24... axb4 {[%clk 0:01:02.5]}
25. Qe3 {[%clk 0:02:12.4]} 25... b3 {[%clk 0:00:57.9]} 26. Qxb3 {[%clk
0:02:11.1]} 26... Ra3 {[%clk 0:00:57.7]} 27. Qd1 {[%clk 0:02:10.2]} 27... Qa7
{[%clk 0:00:41.6]} 28. Kg2 {[%clk 0:02:06.6]} 28... Ra2 {[%clk 0:00:39.6]} 29.
Rc8 {[%clk 0:02:05.1]} 29... Qa6 {[%clk 0:00:37.2]} 30. Re8 {[%clk 0:01:54.5]}
30... Qb5 {[%clk 0:00:33.8]} 31. Rc8 {[%clk 0:01:53.8]} 31... Qb2 {[%clk
0:00:28.3]} 32. Qe1 {[%clk 0:01:43.7]} 32... Qb5 {[%clk 0:00:13.6]} 33. Qe3
{[%clk 0:01:39.6]} 33... Ra1 {[%clk 0:00:13.3]} 34. Kh3 {[%clk 0:01:30.2]} 34...
Qf1+ {[%clk 0:00:10.9]} 35. Kg4 {[%clk 0:01:29.4]} 35... Qb1 {[%clk 0:00:10.7]}
36. Kh3 {[%clk 0:01:14.9]} 36... Qf1+ {[%clk 0:00:09.4]} 37. Kg4 {[%clk
0:01:15.2]} 37... Qb1 {[%clk 0:00:09.5]} 38. Qf4 {[%clk 0:01:08.6]} 38... h5+
{[%clk 0:00:08.9]} 0-1

[Event "Late-Titled-Tuesday-Blitz-February-27-2024"]
[Site "Chess.com"]
[Date "2024.02.27"]
[Round "10"]
[White "picturesquecheck"]
[Black "xasid81"]
[Result "1-0"]
[WhiteElo "2433"]
[BlackElo "2582"]
[TimeControl "180+1"]
[EndTime "15:55:10 PST"]
[Termination "picturesquecheck won by resignation"]

1. e4 {[%clk 0:02:54.1]} 1... c6 {[%clk 0:02:58.9]} 2. d4 {[%clk 0:02:53.4]}
2... d5 {[%clk 0:02:59.8]} 3. exd5 {[%clk 0:02:53.4]} 3... cxd5 {[%clk
0:03:00.6]} 4. Bd3 {[%clk 0:02:53.6]} 4... Nc6 {[%clk 0:02:59.1]} 5. c3 {[%clk
0:02:53.6]} 5... g6 {[%clk 0:02:58.9]} 6. Nf3 {[%clk 0:02:52.6]} 6... Bg7 {[%clk
0:02:59.4]} 7. O-O {[%clk 0:02:53.1]} 7... Nf6 {[%clk 0:02:59.8]} 8. Re1 {[%clk
0:02:53]} 8... O-O {[%clk 0:03:00.4]} 9. Na3 {[%clk 0:02:51.9]} 9... Bf5 {[%clk
0:03:00.6]} 10. Bf1 {[%clk 0:02:51]} 10... a6 {[%clk 0:02:59.7]} 11. Nc2 {[%clk
0:02:50.6]} 11... Rc8 {[%clk 0:02:53.3]} 12. h3 {[%clk 0:02:49.2]} 12... Bxc2
{[%clk 0:02:51.4]} 13. Qxc2 {[%clk 0:02:47.4]} 13... b5 {[%clk 0:02:51.1]} 14.
Qd1 {[%clk 0:02:41.6]} 14... Qb6 {[%clk 0:02:48.7]} 15. a3 {[%clk 0:02:23.5]}
15... a5 {[%clk 0:02:48.1]} 16. Bf4 {[%clk 0:02:17.7]} 16... b4 {[%clk
0:02:45.6]} 17. axb4 {[%clk 0:02:16]} 17... axb4 {[%clk 0:02:46.5]} 18. Ra6
{[%clk 0:02:16.1]} 18... Qb7 {[%clk 0:02:44.9]} 19. Qb3 {[%clk 0:02:12.6]} 19...
Rfd8 {[%clk 0:02:32.7]} 20. Rea1 {[%clk 0:02:05]} 20... Rd7 {[%clk 0:02:31.5]}
21. Qa4 {[%clk 0:01:31]} 21... bxc3 {[%clk 0:02:30.3]} 22. bxc3 {[%clk
0:01:31.9]} 22... Ne4 {[%clk 0:02:24.7]} 23. Bb5 {[%clk 0:01:26.6]} 23... Nxc3
{[%clk 0:01:49.9]} 24. Bxc6 {[%clk 0:01:25.3]} 24... Nxa4 {[%clk 0:01:49.2]} 25.
Bxb7 {[%clk 0:01:23.4]} 25... Rxb7 {[%clk 0:01:49.5]} 26. R6xa4 {[%clk
0:01:22.2]} 26... f6 {[%clk 0:01:47.2]} 27. Ra7 {[%clk 0:01:20.5]} 27... Rxa7
{[%clk 0:01:43]} 28. Rxa7 {[%clk 0:01:21.4]} 28... Kf7 {[%clk 0:01:43.1]} 29.
Bd6 {[%clk 0:01:19.3]} 29... Bf8 {[%clk 0:01:42.2]} 30. Bc5 {[%clk 0:01:18.9]}
30... Rb8 {[%clk 0:01:41.3]} 31. g4 {[%clk 0:01:17.7]} 31... Rb3 {[%clk
0:01:40.5]} 32. Kg2 {[%clk 0:01:17.3]} 32... Rc3 {[%clk 0:01:40.2]} 33. g5
{[%clk 0:01:16.6]} 33... Ke6 {[%clk 0:01:34.8]} 34. gxf6 {[%clk 0:01:15.3]}
34... Kxf6 {[%clk 0:01:35.3]} 35. h4 {[%clk 0:01:12.3]} 35... h6 {[%clk
0:01:32.3]} 36. Ne5 {[%clk 0:01:10.9]} 36... Bg7 {[%clk 0:01:11]} 37. Rxe7
{[%clk 0:00:58.1]} 37... Rxc5 {[%clk 0:00:59.5]} 38. Rf7+ {[%clk 0:00:57.5]}
38... Ke6 {[%clk 0:00:59.5]} 39. Rxg7 {[%clk 0:00:56.6]} 39... Rc1 {[%clk
0:00:53.8]} 40. Rxg6+ {[%clk 0:00:56.5]} 40... Kf5 {[%clk 0:00:54.3]} 41. Rxh6
{[%clk 0:00:56.5]} 41... Rd1 {[%clk 0:00:55]} 42. Nf3 {[%clk 0:00:55.5]} 42...
Kg4 {[%clk 0:00:52.9]} 43. Rg6+ {[%clk 0:00:54.8]} 43... Kh5 {[%clk 0:00:52.4]}
44. Rg5+ {[%clk 0:00:54.8]} 44... Kh6 {[%clk 0:00:53.3]} 45. Rxd5 {[%clk
0:00:55.1]} 45... Rd2 {[%clk 0:00:52.8]} 46. Re5 {[%clk 0:00:54.9]} 46... Rd3
{[%clk 0:00:52.6]} 47. d5 {[%clk 0:00:55.2]} 47... Rd1 {[%clk 0:00:52.6]} 48.
Re6+ {[%clk 0:00:54.7]} 48... Kh5 {[%clk 0:00:51.8]} 49. d6 {[%clk 0:00:55.2]}
49... Kg4 {[%clk 0:00:45.8]} 50. Re4+ {[%clk 0:00:50.9]} 50... Kh5 {[%clk
0:00:44]} 51. Rd4 {[%clk 0:00:49.7]} 1-0

[Event "Late-Titled-Tuesday-Blitz-February-27-2024"]
[Site "Chess.com"]
[Date "2024.02.27"]
[Round "10"]
[White "nihalsarin"]
[Black "Andreikka"]
[Result "1-0"]
[WhiteElo "3190"]
[BlackElo "2956"]
[TimeControl "180+1"]
[EndTime "15:55:14 PST"]
[Termination "nihalsarin won on time"]

1. d4 {[%clk 0:03:00.9]} 1... Nf6 {[%clk 0:02:59.6]} 2. c4 {[%clk 0:03:01.6]}
2... e6 {[%clk 0:02:59.8]} 3. Nf3 {[%clk 0:03:02.3]} 3... d5 {[%clk 0:02:59.1]}
4. Nc3 {[%clk 0:03:02.8]} 4... h6 {[%clk 0:02:58.6]} 5. g3 {[%clk 0:02:52.8]}
5... Nc6 {[%clk 0:02:57.8]} 6. Bg2 {[%clk 0:02:50.8]} 6... Bd6 {[%clk
0:02:58.1]} 7. O-O {[%clk 0:02:50.3]} 7... O-O {[%clk 0:02:58.7]} 8. e3 {[%clk
0:02:37.7]} 8... Re8 {[%clk 0:02:45.9]} 9. b3 {[%clk 0:02:33.6]} 9... dxc4
{[%clk 0:02:42.8]} 10. bxc4 {[%clk 0:02:34.5]} 10... e5 {[%clk 0:02:43.4]} 11.
Bb2 {[%clk 0:02:25.2]} 11... exd4 {[%clk 0:02:39.5]} 12. exd4 {[%clk 0:02:20.5]}
12... Bf5 {[%clk 0:02:38.3]} 13. Nb5 {[%clk 0:01:51.3]} 13... Nb4 {[%clk
0:02:00.2]} 14. Nh4 {[%clk 0:01:37.1]} 14... Bd3 {[%clk 0:01:51.3]} 15. Qb3
{[%clk 0:01:36.8]} 15... Bxf1 {[%clk 0:01:38.6]} 16. Rxf1 {[%clk 0:01:37.7]}
16... Bf8 {[%clk 0:01:24]} 17. d5 {[%clk 0:01:34.1]} 17... c6 {[%clk 0:01:16.7]}
18. Bxf6 {[%clk 0:01:32]} 18... gxf6 {[%clk 0:01:03.7]} 19. Nc3 {[%clk
0:01:28.7]} 19... Rb8 {[%clk 0:00:59.5]} 20. a3 {[%clk 0:01:24.3]} 20... Nd3
{[%clk 0:00:58.8]} 21. Ne4 {[%clk 0:01:21.1]} 21... Nc5 {[%clk 0:00:55.3]} 22.
Nxc5 {[%clk 0:01:21.7]} 22... Bxc5 {[%clk 0:00:55.3]} 23. Nf5 {[%clk 0:01:22.5]}
23... Bf8 {[%clk 0:00:54.8]} 24. Qf3 {[%clk 0:01:20.5]} 24... Re5 {[%clk
0:00:53.2]} 25. Qg4+ {[%clk 0:01:20.3]} 25... Kh8 {[%clk 0:00:53.7]} 26. Qf4
{[%clk 0:01:08.4]} 26... Kh7 {[%clk 0:00:29.5]} 27. dxc6 {[%clk 0:01:04.7]}
27... bxc6 {[%clk 0:00:27.9]} 28. Nd4 {[%clk 0:01:05.4]} 28... Rc8 {[%clk
0:00:05.2]} 29. Nxc6 {[%clk 0:01:05.6]} 29... Rxc6 {[%clk 0:00:04.8]} 30. Bxc6
{[%clk 0:01:06.5]} 30... Qd3 {[%clk 0:00:04.9]} 31. Qxf6 {[%clk 0:01:01.9]}
31... Rf5 {[%clk 0:00:05.4]} 32. Qh4 {[%clk 0:00:57.3]} 32... Re5 {[%clk
0:00:02.3]} 33. Qf4 {[%clk 0:00:50.2]} 1-0

[Event "Late-Titled-Tuesday-Blitz-February-27-2024"]
[Site "Chess.com"]
[Date "2024.02.27"]
[Round "10"]
[White "ckgchess"]
[Black "Goryachkina"]
[Result "1-0"]
[WhiteElo "2886"]
[BlackElo "2694"]
[TimeControl "180+1"]
[EndTime "15:55:15 PST"]
[Termination "ckgchess won on time"]

1. e4 {[%clk 0:03:00.9]} 1... c5 {[%clk 0:02:59.6]} 2. c3 {[%clk 0:03:00.9]}
2... Nf6 {[%clk 0:02:58.1]} 3. e5 {[%clk 0:03:01.1]} 3... Nd5 {[%clk 0:02:58.5]}
4. d4 {[%clk 0:03:02]} 4... cxd4 {[%clk 0:02:57.8]} 5. Bc4 {[%clk 0:03:02.3]}
5... Nb6 {[%clk 0:02:55.9]} 6. Bb3 {[%clk 0:03:02.5]} 6... d6 {[%clk 0:02:52.1]}
7. Nf3 {[%clk 0:03:02]} 7... Nc6 {[%clk 0:02:49.8]} 8. exd6 {[%clk 0:02:52.1]}
8... Qxd6 {[%clk 0:02:47.7]} 9. O-O {[%clk 0:02:51.6]} 9... Bf5 {[%clk
0:02:14.3]} 10. Nxd4 {[%clk 0:02:51.4]} 10... Nxd4 {[%clk 0:02:07.5]} 11. cxd4
{[%clk 0:02:52.3]} 11... e6 {[%clk 0:02:07]} 12. Nc3 {[%clk 0:02:52.9]} 12...
Be7 {[%clk 0:02:03.9]} 13. Qf3 {[%clk 0:02:40.2]} 13... O-O {[%clk 0:01:44.6]}
14. d5 {[%clk 0:02:40.2]} 14... Bf6 {[%clk 0:01:18]} 15. Rd1 {[%clk 0:02:37.5]}
15... Qb4 {[%clk 0:01:03.3]} 16. dxe6 {[%clk 0:02:29]} 16... Bxe6 {[%clk
0:01:01.9]} 17. Bxe6 {[%clk 0:02:27.4]} 17... fxe6 {[%clk 0:01:02.1]} 18. Qxb7
{[%clk 0:02:16.4]} 18... Bd4 {[%clk 0:00:59.5]} 19. Ne4 {[%clk 0:01:57.1]} 19...
Rad8 {[%clk 0:00:38.8]} 20. Bg5 {[%clk 0:01:49]} 20... Bxb2 {[%clk 0:00:20.2]}
21. Bxd8 {[%clk 0:01:18.3]} 21... Bxa1 {[%clk 0:00:20.2]} 22. Be7 {[%clk
0:01:19]} 22... Qa4 {[%clk 0:00:10.7]} 23. Rxa1 {[%clk 0:01:19]} 23... Rc8
{[%clk 0:00:07.1]} 24. h3 {[%clk 0:01:02.1]} 24... Qd4 {[%clk 0:00:06.3]} 25.
Re1 {[%clk 0:01:01.6]} 25... h6 {[%clk 0:00:06.1]} 26. Bc5 {[%clk 0:00:54.5]}
26... Rxc5 {[%clk 0:00:04.4]} 27. Nxc5 {[%clk 0:00:55.4]} 27... Qxc5 {[%clk
0:00:04.5]} 28. Qxa7 {[%clk 0:00:54.9]} 28... Qc3 {[%clk 0:00:03.4]} 29. Qb8+
{[%clk 0:00:47.9]} 29... Kh7 {[%clk 0:00:03]} 30. Qe5 {[%clk 0:00:48.6]} 30...
Qd2 {[%clk 0:00:01.6]} 31. Qe2 {[%clk 0:00:44.7]} 31... Qd4 {[%clk 0:00:01]} 32.
Qe4+ {[%clk 0:00:44.8]} 1-0